bitfinex/quotes_SOLUSD_20250210
["timestamp","ask_amount","ask_price","bid_price","bid_amount"]
[1739166177424,13.41184853,203.28,203.22,8.76149561]
[1739166177629,3.9352,203.29,203.24,8.76149561]
[1739166178029,0.12549,203.28,203.24,8.76149561]
[1739166179241,17.47253853,203.29,203.23,8.76149561]
[1739166179629,17.47253853,203.29,203.24,8.76149561]
[1739166179823,6.5082,203.31,203.25,8.76149561]
[1739166180025,10.4432,203.31,203.26,8.76149561]
[1739166180226,10.4432,203.31,203.25,8.76149561]
[1739166180424,19.20469561,203.31,203.24,8.76149561]
[1739166181345,6.5082,203.31,203.27,8.76149561]
[1739166181543,1.68769,203.33,203.29,8.76149561]
[1739166181741,1.68769,203.33,203.3,8.76149561]
[1739166181742,1.5622,203.33,203.3,8.76149561]
[1739166182427,1.5622,203.33,203.23,0.35825455]
[1739166182428,3.78,203.35,203.31,8.76149561]
[1739166182626,3.78,203.35,203.3,8.76149561]
[1739166182849,1.6093,203.38,203.34,8.76149561]
[1739166183342,0.12549,203.37,203.31,8.76149561]
[1739166184442,1.6093,203.38,203.33,8.76149561]
[1739166184635,1.6093,203.38,203.35,8.76149561]
[1739166184960,0.03,203.39,203.35,8.76149561]
[1739166186144,0.03,203.39,203.36,8.76149561]
[1739166186353,0.03,203.39,203.35,8.76149561]
[1739166187265,0.03,203.39,203.37,8.76149561]
[1739166187746,0.03,203.39,203.38,8.76149561]
[1739166188551,0.03,203.39,203.38,12.69499561]
[1739166190153,0.03,203.39,203.38,13.69499561]
[1739166190653,0.159,203.41,203.4,28.76149561]
[1739166190827,0.159,203.41,203.4,29.11791685]
[1739166191833,0.159,203.41,203.4,28.76149561]
[1739166192033,0.159,203.41,203.4,8.76149561]
[1739166194955,0.159,203.41,203.36,8.76149561]
[1739166195141,4.092,203.41,203.36,8.76149561]
[1739166195348,0.12549,203.4,203.34,8.76149561]
[1739166196155,0.159,203.41,203.39,8.76149561]
[1739166196652,4.092,203.41,203.37,8.76149561]
[1739166196862,4.05859,203.4,203.35,8.76149561]
[1739166197249,4.05859,203.4,203.36,8.76149561]
[1739166197649,4.05859,203.4,203.35,8.76149561]
[1739166197844,8.88698561,203.38,203.31,8.76149561]
[1739166198353,8.88698561,203.38,203.32,8.76149561]
[1739166198551,8.76149561,203.36,203.3,8.76149561]
[1739166198968,12.69549561,203.36,203.3,8.76149561]
[1739166199149,3.934,203.36,203.32,8.76149561]
[1739166199353,3.934,203.36,203.27,3.9356]
[1739166199354,3.934,203.36,203.31,8.76149561]
[1739166199664,12.69549561,203.36,203.3,8.76149561]
[1739166200162,3.934,203.36,203.31,8.76149561]
[1739166200358,13.53733853,203.37,203.33,8.76149561]
[1739166200550,22.29883414,203.37,203.31,8.76149561]
[1739166200747,22.29883414,203.37,203.3,8.76149561]
[1739166200953,14.33402933,203.37,203.29,8.76149561]
[1739166201161,0.12549,203.36,203.32,8.76149561]
[1739166201360,0.12549,203.36,203.33,8.76149561]
[1739166201656,0.12549,203.36,203.3,8.76149561]
[1739166202249,0.159,203.41,203.35,8.76149561]
[1739166202468,0.159,203.41,203.39,8.76149561]
[1739166202854,0.28449,203.41,203.4,8.76149561]
[1739166203364,13.53733853,203.4,203.35,8.76149561]
[1739166203562,22.29883414,203.4,203.34,8.76149561]
[1739166203764,0.12549,203.38,203.33,8.76149561]
[1739166204151,0.12549,203.38,203.34,8.76149561]
[1739166204349,3.9335,203.38,203.34,8.76149561]
[1739166204544,3.9335,203.38,203.32,8.76149561]
[1739166204866,22.29883414,203.37,203.33,0.063]
[1739166205167,15.07593853,203.35,203.33,0.063]
[1739166205544,23.83743414,203.35,203.33,0.063]
[1739166206039,15.07593853,203.35,203.33,0.063]
[1739166206240,19.01003853,203.35,203.33,0.063]
[1739166207765,27.77153414,203.35,203.33,0.063]
[1739166207973,19.01003853,203.35,203.33,0.063]
[1739166208153,1.5386,203.35,203.33,0.063]
[1739166208469,18.01319561,203.4,203.34,8.76149561]
[1739166208671,8.88698561,203.39,203.33,8.82449561]
[1739166208974,12.66698561,203.39,203.33,8.82449561]
[1739166209270,3.90549,203.39,203.34,8.76149561]
[1739166209564,13.53733853,203.37,203.33,0.063]
[1739166210357,23.22107506,203.37,203.33,0.063]
[1739166210757,14.45957945,203.37,203.33,0.063]
[1739166210964,13.53733853,203.37,203.33,0.063]
[1739166211874,0.12549,203.36,203.33,0.063]
[1739166212575,0.12549,203.36,203.34,8.76149561]
[1739166212774,0.12549,203.37,203.34,8.76149561]
[1739166213080,0.12549,203.37,203.33,0.063]
[1739166214078,0.12549,203.37,203.34,8.76149561]
[1739166216257,0.12549,203.37,203.33,8.82449561]
[1739166216983,0.12549,203.37,203.34,8.76149561]
[1739166217561,0.12549,203.37,203.33,8.82449561]
[1739166220085,0.12549,203.37,203.34,8.76149561]
[1739166221089,0.12549,203.37,203.35,8.76149561]
[1739166221265,1.5386,203.4,203.35,8.76149561]
[1739166221466,1.5386,203.4,203.36,8.76149561]
[1739166222686,0.189,203.41,203.37,8.76149561]
[1739166222881,13.53733853,203.4,203.37,8.76149561]
[1739166223184,13.53733853,203.4,203.35,8.76149561]
[1739166224964,12.82008561,203.4,203.33,8.82449561]
[1739166225962,12.82008561,203.4,203.33,12.75889561]
[1739166226258,4.05859,203.4,203.34,8.76149561]
[1739166226461,0.12549,203.4,203.34,8.76149561]
[1739166226689,0.12549,203.4,203.35,8.76149561]
[1739166226863,0.12549,203.4,203.36,8.76149561]
[1739166227495,0.12549,203.4,203.35,8.76149561]
[1739166228688,4.1219,203.41,203.35,8.76149561]
[1739166228890,7.9019,203.41,203.35,8.76149561]
[1739166229792,7.9019,203.41,203.35,5.57786598]
[1739166230698,7.9019,203.41,203.36,5.57786598]
[1739166230992,3.969,203.41,203.36,5.57786598]
[1739166231193,7.9019,203.41,203.35,5.57786598]
[1739166231895,3.969,203.41,203.35,5.57786598]
[1739166232097,3.969,203.41,203.36,5.57786598]
[1739166233574,13.41184853,203.4,203.35,5.57786598]
[1739166234699,0.189,203.41,203.35,5.57786598]
[1739166234893,0.189,203.41,203.35,9.51186598]
[1739166235095,0.189,203.41,203.36,5.57786598]
[1739166238025,0.189,203.41,203.35,5.57786598]
[1739166239805,0.189,203.41,203.35,9.51186598]
[1739166240407,0.189,203.41,203.36,5.57786598]
[1739166241918,0.189,203.41,203.36,9.51176598]
[1739166242315,0.189,203.41,203.4,5.57786598]
[1739166243812,0.189,203.41,203.4,9.51096598]
[1739166244019,0.189,203.41,203.4,5.57786598]
[1739166245115,0.189,203.41,203.38,5.57786598]
[1739166245517,0.189,203.41,203.39,5.57786598]
[1739166246424,0.189,203.41,203.39,9.51106598]
[1739166247815,0.189,203.41,203.4,5.57786598]
[1739166249504,0.189,203.41,203.4,27.8893299]
[1739166249909,0.189,203.41,203.4,11.09886598]
[1739166254125,13.53733853,203.53,203.4,43.2431299]
[1739166254315,6.57786598,203.59,203.52,5.57786598]
[1739166254515,11.6978,203.6,203.54,5.57786598]
[1739166254817,11.867,203.6,203.54,5.57786598]
[1739166255021,17.44486598,203.6,203.53,5.57786598]
[1739166255429,13.53733853,203.59,203.53,5.57786598]
[1739166255637,13.41184853,203.59,203.54,5.57786598]
[1739166255817,13.41184853,203.59,203.45,1.0]
[1739166255818,7.9378,203.6,203.55,5.57786598]
[1739166256128,1.5964,203.6,203.56,5.57786598]
[1739166256313,1.5964,203.6,203.52,22.31146392]
[1739166256314,6.3414,203.65,203.59,5.57786598]
[1739166256515,6.3414,203.65,203.6,5.57786598]
[1739166256734,13.41184853,203.64,203.58,5.57786598]
[1739166256933,18.98971451,203.64,203.57,5.57786598]
[1739166257128,18.98971451,203.64,203.58,5.57786598]
[1739166257929,22.91831451,203.64,203.58,5.57786598]
[1739166258134,0.92099123,203.67,203.55,20.0]
[1739166258447,0.92099123,203.67,203.52,22.31146392]
[1739166258448,9.50496598,203.72,203.65,5.57786598]
[1739166258624,5.57786598,203.72,203.66,5.57786598]
[1739166258812,11.60350604,203.76,203.67,5.57786598]
[1739166259018,11.60350604,203.76,203.64,1.94243453]
[1739166259212,7.67730604,203.76,203.64,1.94243453]
[1739166259420,7.67730604,203.76,203.68,22.31146392]
[1739166259639,7.67730604,203.76,203.75,5.57786598]
[1739166260133,9.50296598,203.82,203.75,5.57786598]
[1739166260435,9.50296598,203.82,203.69,4.28121629]
[1739166260436,7.67730604,203.85,203.79,5.57786598]
[1739166260616,13.25517202,203.85,203.78,5.57786598]
[1739166261046,5.57786598,203.81,203.75,5.57786598]
[1739166261348,5.57786598,203.76,203.69,5.57786598]
[1739166261717,13.41184853,203.76,203.65,10.3928]
[1739166261918,3.9258,203.78,203.66,0.35439502]
[1739166262548,8.68588691,203.76,203.7,8.68588691]
[1739166262843,8.68588691,203.73,203.67,8.68588691]
[1739166263139,8.68588691,203.73,203.66,8.68588691]
[1739166263742,8.68588691,203.71,203.65,8.68588691]
[1739166263959,9.73189613,203.76,203.59,8.0525]
[1739166263960,3.9275,203.69,203.63,8.68588691]
[1739166264453,3.9275,203.69,203.64,8.68588691]
[1739166264665,13.41184853,203.68,203.64,8.68588691]
[1739166265155,13.41184853,203.68,203.62,8.68588691]
[1739166265349,22.09773544,203.68,203.61,8.68588691]
[1739166265535,13.41184853,203.68,203.62,8.68588691]
[1739166266042,3.9279,203.67,203.62,8.68588691]
[1739166266838,0.03,203.7,203.65,8.68588691]
[1739166267051,3.9275,203.69,203.65,8.68588691]
[1739166267731,22.09773544,203.68,203.62,8.68588691]
[1739166268157,13.41184853,203.66,203.61,8.68588691]
[1739166268659,12.61378691,203.67,203.61,8.68588691]
[1739166268962,13.41184853,203.66,203.61,8.68588691]
[1739166269255,3.9283,203.65,203.61,8.68588691]
[1739166270458,3.9275,203.69,203.64,8.68588691]
[1739166270756,3.9275,203.69,203.6,8.68588691]
[1739166270757,13.44184853,203.7,203.65,8.68588691]
[1739166270942,17.36914853,203.7,203.65,8.68588691]
[1739166271258,13.41184853,203.68,203.62,8.68588691]
[1739166271450,3.9279,203.67,203.62,8.68588691]
[1739166272662,3.9279,203.67,203.61,8.68588691]
[1739166273663,12.61378691,203.67,203.61,8.68588691]
[1739166274056,13.53733853,203.66,203.6,8.68588691]
[1739166274255,8.68588691,203.64,203.58,8.68588691]
[1739166274759,3.9279,203.67,203.61,8.68588691]
[1739166274959,3.9279,203.67,203.59,8.68588691]
[1739166274960,8.68588691,203.66,203.59,8.68588691]
[1739166275261,8.68588691,203.65,203.59,8.68588691]
[1739166276274,13.41184853,203.67,203.61,8.68588691]
[1739166276946,13.41184853,203.67,203.62,8.68588691]
[1739166277154,3.78,203.69,203.63,8.68588691]
[1739166277350,0.03,203.68,203.64,8.68588691]
[1739166277675,0.03,203.68,203.65,8.68588691]
[1739166278467,0.03,203.68,203.64,8.68588691]
[1739166278959,0.03,203.68,203.6,8.68588691]
[1739166278960,0.03,203.68,203.65,8.68588691]
[1739166279158,0.03,203.68,203.67,8.68588691]
[1739166280252,0.03,203.68,203.67,12.61378691]
[1739166282668,13.41184853,203.75,203.67,12.61378691]
[1739166282962,13.41184853,203.75,203.69,8.68588691]
[1739166283445,6.3414,203.77,203.71,8.68588691]
[1739166284262,10.22638691,203.79,203.72,8.68588691]
[1739166284464,8.68588691,203.79,203.72,8.68588691]
[1739166284775,8.68588691,203.79,203.72,12.61278691]
[1739166286549,13.41184853,203.79,203.74,8.68588691]
[1739166286867,13.41184853,203.79,203.73,8.68588691]
[1739166287866,8.68588691,203.81,203.74,8.68588691]
[1739166288078,4.84492288,203.84,203.7,9.8181]
[1739166288079,8.68588691,203.82,203.7,9.8181]
[1739166288384,13.41184853,203.81,203.75,8.68588691]
[1739166288674,8.68588691,203.82,203.75,8.68588691]
[1739166289166,0.03,203.79,203.75,8.68588691]
[1739166289369,0.03,203.79,203.74,8.68588691]
[1739166290566,0.03,203.79,203.75,8.68588691]
[1739166290763,0.03,203.79,203.76,8.68588691]
[1739166290951,0.03,203.79,203.77,8.68588691]
[1739166291543,0.03,203.79,203.76,8.68588691]
[1739166291751,0.03,203.79,203.74,8.68588691]
[1739166292462,0.03,203.79,203.76,8.68588691]
[1739166293784,0.03,203.79,203.74,5.55525673]
[1739166294066,5.55525673,203.76,203.7,5.55525673]
[1739166294659,13.41184853,203.76,203.7,5.55525673]
[1739166294866,22.89330526,203.76,203.7,5.55525673]
[1739166295666,22.89330526,203.76,203.7,8.68528075]
[1739166295667,26.02332928,203.76,203.7,8.68528075]
[1739166296050,17.33804853,203.76,203.71,8.68528075]
[1739166296251,17.33804853,203.76,203.7,8.68528075]
[1739166296447,26.02332928,203.76,203.69,8.68528075]
[1739166297473,12.61148075,203.76,203.69,8.68528075]
[1739166297674,12.61148075,203.76,203.69,12.61268075]
[1739166297980,12.61148075,203.76,203.61,3.929]
[1739166297981,8.68528075,203.7,203.61,3.929]
[1739166298149,8.68528075,203.68,203.61,8.68528075]
[1739166298350,8.68528075,203.69,203.56,0.35505775]
[1739166298571,3.8,203.75,203.56,1.35505775]
[1739166298747,13.53733853,203.74,203.58,20.0]
[1739166299075,13.41184853,203.72,203.65,8.68528075]
[1739166300060,12.61208075,203.73,203.65,8.68528075]
[1739166300370,8.68528075,203.72,203.64,8.68528075]
[1739166300572,8.68528075,203.72,203.68,0.063]
[1739166300771,12.61208075,203.73,203.68,0.063]
[1739166301275,13.41184853,203.75,203.68,0.063]
[1739166301276,8.68528075,203.74,203.68,0.063]
[1739166301583,17.33834853,203.75,203.69,8.68528075]
[1739166301965,26.02362928,203.75,203.68,8.74828075]
[1739166302165,3.9265,203.75,203.69,8.68528075]
[1739166302859,26.02362928,203.75,203.68,8.74828075]
[1739166303179,8.68528075,203.75,203.68,8.74828075]
[1739166303476,3.9264,203.75,203.69,8.68528075]
[1739166303781,17.33824853,203.75,203.69,8.68528075]
[1739166304274,1.5589,203.79,203.74,8.68528075]
[1739166304457,0.03,203.79,203.75,8.68528075]
[1739166304659,0.03,203.79,203.76,8.68528075]
[1739166305567,0.03,203.79,203.77,8.68528075]
[1739166305776,0.03,203.79,203.78,8.68528075]
[1739166306467,0.03,203.79,203.77,8.68528075]
[1739166307089,0.03,203.79,203.78,8.68528075]
[1739166307585,16.68608075,203.94,203.81,20.0]
[1739166307761,16.68608075,203.94,203.87,8.68528075]
[1739166307959,8.68528075,203.93,203.86,8.68528075]
[1739166308277,8.68528075,203.92,203.86,8.68528075]
[1739166308468,8.68528075,203.92,203.85,8.68528075]
[1739166308669,12.60838075,203.92,203.85,8.68528075]
[1739166309074,8.68528075,203.93,203.86,8.68528075]
[1739166309391,11.9211591,204.0,203.92,8.68528075]
[1739166309392,5.5366,203.98,203.92,8.68528075]
[1739166309579,1.6146,203.98,203.92,8.68528075]
[1739166310101,8.68528075,203.98,203.91,8.68528075]
[1739166310392,8.68528075,203.95,203.88,8.68528075]
[1739166310607,8.68528075,203.93,203.86,8.68528075]
[1739166310981,8.68528075,203.91,203.84,8.68528075]
[1739166311374,8.68528075,203.92,203.85,8.68528075]
[1739166311676,8.68528075,203.93,203.85,8.68528075]
[1739166311895,8.68528075,203.92,203.85,8.68528075]
[1739166312095,8.68528075,203.9,203.83,8.68528075]
[1739166312404,8.68528075,203.88,203.81,8.68528075]
[1739166312571,13.41184853,203.91,203.81,8.68528075]
[1739166312572,8.68528075,203.89,203.81,8.68528075]
[1739166312881,0.12549,203.9,203.83,8.68528075]
[1739166313085,12.60858075,203.91,203.83,8.68528075]
[1739166313280,8.68528075,203.9,203.83,8.68528075]
[1739166313491,8.68528075,203.88,203.81,8.68528075]
[1739166313687,8.68528075,203.88,203.77,0.35331608]
[1739166313688,8.68528075,203.89,203.82,8.68528075]
[1739166313889,13.53733853,203.9,203.83,8.68528075]
[1739166313890,8.68528075,203.9,203.83,8.68528075]
[1739166314275,8.68528075,203.9,203.77,4.27911608]
[1739166314276,8.71528075,203.92,203.85,8.68528075]
[1739166314477,12.63848075,203.92,203.84,8.68528075]
[1739166314707,8.68528075,203.91,203.84,8.68528075]
[1739166315079,3.9532,203.92,203.86,8.68528075]
[1739166315287,0.03,203.92,203.88,8.68528075]
[1739166315990,0.03,203.92,203.9,8.68528075]
[1739166316193,0.03,203.92,203.91,8.68528075]
[1739166317305,0.03,203.92,203.9,8.68528075]
[1739166317499,0.03,203.92,203.91,8.68528075]
[1739166317803,0.03,203.92,203.9,8.68528075]
[1739166318110,0.03,203.92,203.89,8.68528075]
[1739166318611,0.03,203.92,203.86,8.68528075]
[1739166318807,0.03,203.92,203.85,3.9243]
[1739166318808,8.71528075,203.92,203.85,8.68528075]
[1739166318995,8.71528075,203.92,203.83,3.9247]
[1739166318996,8.68528075,203.91,203.84,8.68528075]
[1739166319612,3.9531,203.92,203.82,8.68528075]
[1739166319613,8.68528075,203.89,203.82,8.68528075]
[1739166319784,4.87276121,203.92,203.82,8.68528075]
[1739166319785,8.68528075,203.88,203.82,8.68528075]
[1739166320182,8.68528075,203.89,203.82,8.68528075]
[1739166320503,4.87276121,203.92,203.83,8.68528075]
[1739166320504,8.68528075,203.9,203.83,8.68528075]
[1739166322010,8.71528075,203.92,203.85,8.68528075]
[1739166322306,0.03,203.92,203.87,8.68528075]
[1739166322712,0.03,203.92,203.88,8.68528075]
[1739166322913,0.03,203.92,203.89,8.68528075]
[1739166323483,0.03,203.92,203.83,3.9247]
[1739166323484,0.03,203.92,203.86,8.68528075]
[1739166323692,0.03,203.92,203.88,8.68528075]
[1739166324430,0.03,203.92,203.88,12.60908075]
[1739166324726,0.03,203.92,203.91,8.68528075]
[1739166326415,0.03,203.92,203.73,313.21432916]
[1739166326416,1.0,203.66,203.65,0.0535809]
[1739166326616,1.0,203.66,203.55,8.68528075]
[1739166326617,1.0,203.61,203.55,8.68528075]
[1739166327008,1.0,203.61,203.53,98.06545753]
[1739166327630,1.0,203.61,203.54,13.91524224]
[1739166328023,1.0,203.64,203.58,13.91524224]
[1739166328519,1.0,203.62,203.56,13.91524224]
[1739166328725,1.0,203.6,203.56,13.91524224]
[1739166328903,1.0,203.58,203.54,13.91524224]
[1739166329099,1.0,203.58,203.52,13.91524224]
[1739166329301,1.0,203.58,203.54,13.91524224]
[1739166330527,30.70922419,203.55,203.52,13.91524224]
[1739166331505,30.70922419,203.55,203.54,13.91524224]
[1739166332012,34.07375163,203.55,203.54,13.91524224]
[1739166332211,34.07375163,203.55,203.54,14.91524224]
[1739166332397,21.6487074,203.55,203.54,13.91524224]
[1739166332930,7.62579778,203.58,203.57,20.0]
[1739166333116,7.62579778,203.58,203.57,33.91524224]
[1739166333825,2.0,203.64,203.57,33.91524224]
[1739166334011,2.0,203.64,203.6,13.91524224]
[1739166334609,7.62579778,203.66,203.63,13.91524224]
[1739166334932,7.62579778,203.66,203.65,13.91524224]
[1739166335931,1.0,203.71,203.65,13.91524224]
[1739166336131,1.0,203.71,203.68,13.91524224]
[1739166336329,1.0052,203.73,203.71,20.0]
[1739166336510,1.0052,203.73,203.72,13.91524224]
[1739166337114,1.0052,203.73,203.68,3.9276]
[1739166337316,1.0052,203.73,203.72,13.91524224]
[1739166337516,7.62579778,203.8,203.75,20.0]
[1739166337720,15.25159557,203.83,203.75,20.0]
[1739166337930,52.82289117,203.92,203.73,13.66282853]
[1739166338231,52.82289117,203.92,203.81,13.7382]
[1739166338632,52.82289117,203.92,203.84,13.91524224]
[1739166338633,15.23608045,203.89,203.84,13.91524224]
[1739166338843,0.03,203.92,203.87,20.0]
[1739166339628,46.06383629,203.97,203.91,27.83048448]
[1739166339966,46.06383629,203.97,203.96,13.91524224]
[1739166340267,34.5075892,203.97,203.96,13.91524224]
[1739166340455,34.5075892,203.97,203.96,17.83754224]
[1739166341737,1.0,203.97,203.96,22.51932357]
[1739166341929,1.0,203.95,203.92,26.44242357]
[1739166342336,20.0,204.04,203.86,11.4734]
[1739166342337,1.0,203.93,203.86,11.4734]
[1739166342535,1.0,203.91,203.87,3.924]
[1739166342752,1.0,203.89,203.87,26.44332357]
[1739166342954,1.0,203.89,203.87,3.924]
[1739166343142,1.0,203.86,203.85,26.44362357]
[1739166343344,1.0,203.86,203.84,22.51932357]
[1739166343659,1.0,203.93,203.85,22.51932357]
[1739166343846,1.0,203.97,203.92,22.51932357]
[1739166344035,1.0,204.0,203.95,22.51932357]
[1739166344338,1.0,204.0,203.94,26.44182357]
[1739166344538,1.0,204.01,203.96,22.51932357]
[1739166344753,1.0,203.98,203.96,22.51932357]
[1739166344937,1.0,204.0,203.96,22.51932357]
[1739166345756,13.41184853,204.05,203.94,3.9225]
[1739166345757,1.0,204.05,203.99,22.51932357]
[1739166345966,1.0,204.05,204.02,22.51932357]
[1739166346145,1.0,204.05,204.01,22.51932357]
[1739166346342,1.0,204.09,204.04,26.44002357]
[1739166346563,1.0,204.09,204.05,22.51932357]
[1739166347267,1.0,204.12,204.11,20.0]
[1739166347554,1.0,204.15,204.11,42.51932357]
[1739166347759,1.0,204.17,204.14,22.51932357]
[1739166347935,0.134,204.18,204.16,20.0]
[1739166348254,0.134,204.18,204.17,3.9183]
[1739166348731,0.134,204.18,204.16,22.51932357]
[1739166348935,0.134,204.18,204.17,22.51932357]
[1739166349158,0.134,204.18,204.15,22.51932357]
[1739166349370,0.134,204.18,204.12,3.9192]
[1739166349371,0.134,204.18,204.17,22.51932357]
[1739166350439,0.134,204.18,204.17,26.43762357]
[1739166350639,0.134,204.18,204.17,22.51932357]
[1739166350844,0.134,204.18,204.15,3.9185]
[1739166350845,0.134,204.18,204.15,22.51932357]
[1739166351358,0.134,204.18,204.17,22.51932357]
[1739166353058,2.0,204.16,204.11,22.51932357]
[1739166353239,1.0,204.16,204.11,22.51932357]
[1739166353440,2.134,204.18,204.13,22.51932357]
[1739166353667,1.0,204.16,204.11,22.51932357]
[1739166353847,2.0,204.14,204.09,22.51932357]
[1739166354053,21.79598448,204.17,204.09,22.51932357]
[1739166354254,22.51932357,204.14,204.07,22.51932357]
[1739166354558,22.51932357,204.12,204.04,22.51932357]
[1739166354744,22.51932357,204.1,204.03,22.51932357]
[1739166354947,22.51932357,204.12,204.04,22.51932357]
[1739166355144,0.91878175,204.15,203.99,3.9217]
[1739166355451,0.91878175,204.15,203.98,25.5028]
[1739166355452,13.41184853,204.14,203.98,25.5028]
[1739166355641,13.41184853,204.12,203.98,5.5028]
[1739166355836,13.41184853,204.12,203.97,0.063]
[1739166355837,13.41184853,204.1,203.97,0.063]
[1739166356368,22.51932357,204.08,204.01,22.51932357]
[1739166356545,22.51932357,204.09,204.01,22.51932357]
[1739166356748,22.51932357,204.05,203.98,22.51932357]
[1739166356950,22.51932357,204.06,203.98,22.51932357]
[1739166357248,22.51932357,204.05,203.98,22.51932357]
[1739166357463,22.51932357,204.07,203.99,22.51932357]
[1739166358563,22.51932357,204.09,204.01,22.51932357]
[1739166359349,22.51932357,204.05,203.97,22.58232357]
[1739166359765,4.83879376,204.1,203.99,22.51932357]
[1739166359766,22.51932357,204.07,203.99,22.51932357]
[1739166359947,22.51932357,204.09,203.99,22.51932357]
[1739166360144,22.75744556,204.09,204.01,22.51932357]
[1739166360368,22.51932357,204.05,203.97,22.58232357]
[1739166360564,0.23812199,204.04,203.97,0.063]
[1739166360768,0.23812199,204.04,203.97,22.58232357]
[1739166360964,0.23812199,204.04,204.01,22.51932357]
[1739166361340,0.23812199,204.04,203.97,26.50432357]
[1739166361649,0.23812199,204.04,203.97,0.063]
[1739166361859,22.51932357,204.03,203.97,0.063]
[1739166362046,0.23812199,204.02,203.97,0.063]
[1739166362968,22.51932357,203.99,203.97,0.063]
[1739166363265,22.51932357,203.98,203.97,0.063]
[1739166363449,22.51932357,204.02,203.97,0.063]
[1739166363653,0.03,204.09,203.99,22.51932357]
[1739166363973,0.03,204.09,203.97,0.063]
[1739166364155,22.51932357,204.08,204.01,22.51932357]
[1739166364671,22.51932357,204.08,203.99,22.51932357]
[1739166365051,22.51932357,204.06,203.99,22.51932357]
[1739166365260,3.9201,204.08,203.97,0.063]
[1739166365261,22.51932357,204.02,203.97,0.063]
[1739166365574,22.51932357,204.06,203.97,22.58232357]
[1739166366071,22.51932357,204.06,203.97,26.50442357]
[1739166366453,0.03,204.09,204.01,22.51932357]
[1739166366950,3.9499,204.09,204.01,22.51932357]
[1739166367360,22.51932357,204.08,204.01,22.51932357]
[1739166367581,22.51932357,204.08,203.99,22.51932357]
[1739166367772,22.51932357,204.06,203.97,22.58232357]
[1739166367952,4.86884532,204.09,203.97,0.063]
[1739166367953,22.51932357,204.02,203.97,0.063]
[1739166368275,22.51932357,204.0,203.97,0.063]
[1739166368570,22.51932357,203.98,203.97,0.063]
[1739166368774,22.51932357,204.0,203.97,0.063]
[1739166369076,26.44122357,203.98,203.97,0.063]
[1739166369449,22.51932357,203.98,203.97,0.063]
[1739166369869,23.43872797,203.98,203.97,0.063]
[1739166370369,22.51932357,203.98,203.97,0.063]
[1739166370575,26.44082357,204.01,203.97,0.063]
[1739166370778,22.51932357,204.02,203.97,0.063]
[1739166370953,26.44022357,204.04,203.97,0.063]
[1739166371269,22.51932357,204.02,203.97,0.063]
[1739166371475,22.51932357,204.0,203.97,0.063]
[1739166371777,22.51932357,203.98,203.97,0.063]
[1739166372451,22.51932357,204.02,203.97,0.063]
[1739166372653,32.31972357,204.08,203.97,0.063]
[1739166372654,26.43982357,204.06,203.98,22.51932357]
[1739166372855,22.51932357,204.04,203.97,0.063]
[1739166373062,22.51932357,204.02,203.97,0.063]
[1739166373264,22.51932357,204.03,203.97,0.063]
[1739166373559,22.51932357,204.01,203.97,0.063]
[1739166373761,22.51932357,203.98,203.97,0.063]
[1739166374167,23.43887509,203.98,203.97,0.063]
[1739166374377,36.85072362,203.98,203.97,0.063]
[1739166375280,40.77262362,203.98,203.97,0.063]
[1739166375470,27.36077509,203.98,203.97,0.063]
[1739166375777,22.51932357,204.0,203.97,0.063]
[1739166375980,26.44072357,204.01,203.97,0.063]
[1739166376173,22.51932357,204.0,203.97,0.063]
[1739166376783,22.51932357,203.98,203.97,0.063]
[1739166377279,26.44122357,203.98,203.97,0.063]
[1739166378864,40.77260889,203.98,203.97,0.063]
[1739166379179,26.44122357,203.98,203.97,0.063]
[1739166379763,22.51932357,203.98,203.97,0.063]
[1739166380089,22.51932357,204.0,203.97,0.063]
[1739166380999,22.51932357,203.98,203.97,0.063]
[1739166381301,26.44122357,203.98,203.97,0.063]
[1739166381660,18.71238961,203.98,203.97,0.063]
[1739166381853,32.12423814,203.98,203.97,0.063]
[1739166382088,33.12423814,203.98,203.97,0.063]
[1739166382566,13.87099893,203.88,203.81,13.87099893]
[1739166382876,13.87099893,203.93,203.86,13.87099893]
[1739166383184,0.91962544,204.0,203.91,13.87099893]
[1739166383364,10.559,203.99,203.91,13.87099893]